bitfinex/quotes_SOLUSD_20250131
["timestamp","ask_amount","ask_price","bid_price","bid_amount"]
[1738298206009,0.03,236.39,236.36,4.2308]
[1738298206191,0.03,236.39,236.38,20.0]
[1738298206809,0.03,236.39,236.38,4.2304]
[1738298207041,0.03,236.39,236.38,24.2304]
[1738298208027,0.03,236.48,236.45,0.12549]
[1738298208312,0.03,236.53,236.48,20.0]
[1738298208495,0.03,236.53,236.49,2.8]
[1738298209004,0.03,236.53,236.52,20.0]
[1738298209207,0.03,236.53,236.52,20.12549]
[1738298210809,0.03,236.53,236.52,20.75947696]
[1738298211149,0.03,236.53,236.52,4.98737696]
[1738298211685,0.03,236.53,236.52,24.98737696]
[1738298215790,0.03,236.53,236.52,24.35339]
[1738298217105,0.03,236.56,236.52,24.35339]
[1738298217317,0.03,236.56,236.55,20.0]
[1738298218413,0.03,236.56,236.54,4.2276]
[1738298220392,0.03,236.56,236.52,20.0]
[1738298220593,0.03,236.56,236.53,2.8]
[1738298225117,0.03,236.56,236.5,20.0]
[1738298225293,0.03,236.56,236.52,2.8]
[1738298226722,0.03,236.56,236.51,4.228]
[1738298229016,0.03,236.56,236.46,8.82511889]
[1738298229017,80.6,236.55,236.46,8.82511889]
[1738298229196,13.41184853,236.54,236.48,2.8]
[1738298233919,13.41184853,236.54,236.48,2.863]
[1738298234717,80.6,236.53,236.48,0.063]
[1738298234919,13.41184853,236.52,236.48,0.063]
[1738298236722,80.6,236.53,236.48,0.063]
[1738298240709,80.6,236.52,236.48,0.063]
[1738298247042,80.6,236.52,236.48,4.2916]
[1738298248732,80.6,236.52,236.5,20.0]
[1738298248953,0.03,236.56,236.51,20.0]
[1738298249120,0.03,236.56,236.51,20.63399922]
[1738298250647,0.03,236.56,236.52,24.2279]
[1738298257684,0.03,236.56,236.53,2.78]
[1738298259050,0.03,236.56,236.52,0.063]
[1738298261964,0.03,236.56,236.52,24.2909]
[1738298268850,0.03,236.56,236.53,4.2277]
[1738298272028,0.03,236.56,236.52,20.063]
[1738298272519,0.03,236.56,236.52,24.2909]
[1738298273148,0.03,236.56,236.52,20.063]
[1738298279557,0.03,236.56,236.52,0.063]
[1738298282263,80.6,236.55,236.52,0.063]
[1738298282768,80.6,236.54,236.52,0.063]
[1738298296058,80.6,236.54,236.52,4.2909]
[1738298296878,0.03,236.56,236.52,4.2909]
[1738298304693,0.03,236.56,236.52,0.063]
[1738298306070,80.63,236.56,236.52,0.063]
[1738298308876,84.8572,236.56,236.52,0.063]
[1738298309074,94.01184853,236.55,236.52,0.063]
[1738298314899,80.6,236.54,236.52,0.063]
[1738298317087,80.6,236.54,236.52,4.2909]
[1738298318910,80.6,236.54,236.52,0.063]
[1738298324807,0.03,236.55,236.52,0.063]
[1738298335813,80.63,236.55,236.52,0.063]
[1738298336633,84.8574,236.55,236.52,0.063]
[1738298341724,80.6,236.54,236.52,0.063]
[1738298342518,13.41184853,236.53,236.52,0.063]
[1738298343387,17.63954853,236.53,236.52,0.063]
[1738298345893,13.41184853,236.53,236.52,0.063]
[1738298346223,80.6,236.54,236.52,0.063]
[1738298355528,80.63,236.54,236.52,0.063]
[1738298356502,84.8576,236.54,236.52,0.063]
[1738298359542,80.6,236.53,236.52,0.063]
[1738298360931,94.01184853,236.53,236.52,0.063]
[1738298361104,98.23954853,236.53,236.52,0.063]
[1738298362510,80.6,236.53,236.52,0.063]
[1738298364234,94.01184853,236.53,236.52,0.063]
[1738298364931,98.23954853,236.53,236.52,0.063]
[1738298365510,17.63954853,236.53,236.52,0.063]
[1738298367611,17.63954853,236.53,236.45,24.2291]
[1738298367612,13.41184853,236.52,236.45,21.35600629]
[1738298367914,80.6,236.51,236.45,21.35600629]
[1738298370029,80.6,236.51,236.45,17.12690629]
[1738298371420,80.6,236.5,236.45,17.12690629]
[1738298375222,80.6,236.5,236.45,21.35610629]
[1738298377336,80.6,236.49,236.45,21.35610629]
[1738298380137,80.6,236.49,236.45,21.41910629]
[1738298382760,80.6,236.49,236.46,4.23]
[1738298382953,80.6,236.49,236.45,21.41910629]
[1738298393168,80.63,236.49,236.46,4.2289]
[1738298400571,80.63,236.49,236.45,17.18990629]
[1738298400882,80.63,236.49,236.47,20.0]
[1738298402671,80.63,236.49,236.46,4.229]
[1738298402970,80.63,236.49,236.47,20.0]
[1738298406880,80.63,236.49,236.46,4.229]
[1738298407059,0.03,236.49,236.46,4.229]
[1738298408071,0.03,236.49,236.45,0.063]
[1738298408282,13.41184853,236.47,236.45,0.063]
[1738298408587,88.3608,236.46,236.45,0.063]
[1738298409668,92.5898,236.46,236.45,0.063]
[1738298412984,11.9898,236.46,236.45,0.063]
[1738298415291,25.65262853,236.46,236.45,0.063]
[1738298417570,8.26363127,236.49,236.45,0.063]
[1738298417571,0.03,236.49,236.45,0.063]
[1738298417767,80.6,236.48,236.45,0.063]
[1738298417965,80.6,236.48,236.45,4.2922]
[1738298425388,13.41184853,236.47,236.45,0.063]
[1738298425564,94.01184853,236.46,236.45,0.063]
[1738298426064,13.41184853,236.46,236.45,0.063]
[1738298428692,0.03,236.48,236.45,0.063]
[1738298431391,0.03,236.48,236.45,4.2922]
[1738298432787,0.03,236.48,236.45,0.063]
[1738298434878,80.63,236.48,236.45,4.2922]
[1738298435994,80.63,236.48,236.45,0.063]
[1738298438179,13.41184853,236.47,236.45,0.063]
[1738298438574,94.01184853,236.46,236.45,0.063]
[1738298439285,13.41184853,236.46,236.45,0.063]
[1738298439486,17.64084853,236.46,236.45,0.063]
[1738298439875,17.89182853,236.46,236.45,0.063]
[1738298440577,26.1254598,236.46,236.45,0.063]
[1738298442701,17.89182853,236.46,236.45,0.063]
[1738298444695,26.1254598,236.46,236.45,0.063]
[1738298445291,28.1254598,236.46,236.45,0.0001]
[1738298445601,13.41184853,236.41,236.38,0.063]
[1738298445771,21.8964598,236.39,236.38,0.063]
[1738298446395,23.5564598,236.39,236.38,0.063]
[1738298447093,27.7866598,236.39,236.38,0.063]
[1738298448902,27.9121498,236.39,236.38,0.063]
[1738298451800,13.41184853,236.39,236.38,0.063]
[1738298452313,13.66282853,236.39,236.38,0.063]
[1738298453499,13.41184853,236.39,236.38,0.063]
[1738298454916,1.6932,236.45,236.38,4.2934]
[1738298455086,0.03,236.45,236.38,4.2934]
[1738298455487,4.2592,236.45,236.38,0.063]
[1738298455805,80.6,236.41,236.38,0.063]
[1738298460488,80.6,236.4,236.38,0.063]
[1738298462012,80.6,236.4,236.38,4.2934]
[1738298463909,80.6,236.4,236.38,0.063]
[1738298466414,80.6,236.44,236.38,0.063]
[1738298468914,80.6,236.44,236.4,20.0]
[1738298469214,0.03,236.45,236.4,20.0]
[1738298469913,0.03,236.45,236.41,20.0]
[1738298470917,0.03,236.45,236.4,20.0]
[1738298473329,0.03,236.45,236.41,20.0]
[1738298474617,0.03,236.45,236.4,20.0]
[1738298476025,0.03,236.45,236.41,20.0]
[1738298477255,0.03,236.45,236.38,10.6391]
[1738298477256,0.03,236.45,236.38,0.063]
[1738298478224,80.6,236.44,236.38,0.063]
[1738298479822,13.41184853,236.43,236.38,0.063]
[1738298481225,13.41184853,236.43,236.38,20.063]
[1738298481421,80.6,236.42,236.38,20.063]
[1738298482321,80.6,236.42,236.38,0.063]
[1738298482322,4.2301,236.4,236.38,0.063]
[1738298482529,13.41184853,236.39,236.38,0.063]
[1738298484435,17.89272853,236.42,236.38,0.063]
[1738298492017,0.03,236.45,236.38,0.063]
[1738298492335,0.03,236.45,236.38,4.2934]
[1738298493146,4.2592,236.45,236.38,4.2934]
[1738298493444,13.41184853,236.43,236.38,4.2934]
[1738298493739,13.41184853,236.43,236.38,0.063]
[1738298496122,17.64134853,236.43,236.38,0.063]
[1738298499146,80.6,236.42,236.38,0.063]
[1738298503734,84.8298,236.42,236.38,0.063]
[1738298505042,98.24174853,236.41,236.38,0.063]
[1738298505251,0.25098,236.4,236.38,0.063]
[1738298506451,21.8964598,236.39,236.38,0.063]
[1738298506660,80.63,236.45,236.38,0.063]
[1738298507121,80.63,236.45,236.38,4.2933]
[1738298507847,0.03,236.45,236.38,4.2933]
[1738298510548,0.03,236.45,236.38,0.063]
[1738298512151,13.41184853,236.43,236.38,0.063]
[1738298514863,17.64144853,236.43,236.38,0.063]
[1738298516947,13.41184853,236.41,236.38,0.063]
[1738298518062,17.64184853,236.41,236.38,0.063]
[1738298521368,4.2302,236.39,236.38,0.063]
[1738298536874,4.2294,236.44,236.38,0.063]
[1738298537075,80.6,236.43,236.38,0.063]
[1738298537448,80.6,236.43,236.38,4.2934]
[1738298538650,0.03,236.45,236.38,4.2934]
[1738298539482,0.03,236.45,236.39,4.23]
[1738298539653,0.03,236.45,236.38,4.2934]
[1738298542675,0.03,236.45,236.38,0.063]
[1738298543980,4.2592,236.45,236.38,0.063]
[1738298544662,13.41184853,236.44,236.38,0.063]
[1738298545875,4.2295,236.43,236.38,0.063]
[1738298547773,4.2294,236.44,236.38,0.063]
[1738298548287,80.6,236.43,236.38,0.063]
[1738298548583,13.41184853,236.42,236.38,0.063]
[1738298549668,17.64164853,236.42,236.38,0.063]
[1738298552554,80.6,236.41,236.38,0.063]
[1738298554866,84.8299,236.41,236.38,0.063]
[1738298555382,13.41184853,236.4,236.38,0.063]
[1738298556882,98.49302853,236.39,236.38,0.063]
[1738298559808,98.24204853,236.39,236.38,0.063]
[1738298560384,98.49302853,236.39,236.38,0.063]
[1738298560594,17.89302853,236.39,236.38,0.063]
[1738298562381,26.1266598,236.39,236.38,0.063]
[1738298566315,13.41184853,236.38,236.3,0.0001]
[1738298566613,36.7023598,236.39,236.3,0.0001]
[1738298566614,13.41184853,236.36,236.3,0.0001]
[1738298567099,0.25098,236.35,236.3,0.0001]
[1738298568231,13.41184853,236.33,236.3,0.0001]
[1738298568394,80.6,236.32,236.3,0.0001]
[1738298569331,4.2317,236.31,236.3,0.0001]
[1738298571215,17.64354853,236.31,236.3,0.0001]
[1738298576822,17.89452853,236.31,236.3,0.0001]
[1738298586433,17.64354853,236.31,236.3,0.0001]
[1738298586606,4.231,236.35,236.3,0.0001]
[1738298586797,13.41184853,236.34,236.3,0.0001]
[1738298588332,13.41184853,236.35,236.3,0.0001]
[1738298588730,21.8964598,236.31,236.3,0.0001]
[1738298589406,41.8964598,236.31,236.3,0.0001]
[1738298590120,46.1281598,236.31,236.3,0.0001]
[1738298592342,46.3791398,236.31,236.3,0.0001]
[1738298595117,13.78831853,236.3,236.28,0.0001]
[1738298595510,21.8964598,236.29,236.28,0.0001]
[1738298595811,26.1284598,236.29,236.28,0.0001]
[1738298598735,26.2539498,236.29,236.28,0.0001]
[1738298605833,26.2839498,236.29,236.28,0.0001]
[1738298609050,26.2839498,236.29,236.24,0.063]
[1738298609051,20.12549,236.25,236.24,0.063]
[1738298609253,41.8964598,236.25,236.24,0.063]
[1738298609440,41.8964598,236.25,236.24,0.0001]
[1738298609828,33.66282853,236.25,236.24,0.0001]
[1738298610582,37.89562853,236.25,236.24,0.0001]
[1738298612547,46.1292598,236.25,236.24,0.0001]
[1738298612758,46.2547498,236.25,236.24,0.0001]
[1738298618256,46.1292598,236.25,236.24,0.0001]
[1738298618451,26.1292598,236.25,236.24,0.0001]
[1738298629655,26.1592598,236.25,236.24,0.0001]
[1738298631961,17.80013853,236.25,236.24,0.0001]
[1738298632647,4.2628,236.25,236.24,0.0001]
[1738298634069,0.03,236.25,236.24,0.0001]
[1738298634369,8.51461127,236.25,236.24,0.0001]
[1738298634549,21.9264598,236.25,236.24,0.0001]
[1738298636359,17.92562853,236.25,236.24,0.0001]
[1738298641688,26.1592598,236.25,236.24,0.0001]
[1738298642399,26.1592598,236.25,236.14,0.063]
[1738298642400,0.12549,236.19,236.14,0.063]
[1738298642686,0.03,236.25,236.18,20.0]
[1738298642866,0.03,236.25,236.19,7.6458]
[1738298643386,4.2628,236.25,236.19,7.6458]
[1738298643551,0.12549,236.23,236.19,1.5092]
[1738298643755,0.12549,236.23,236.14,6.3106]
[1738298643956,0.25098,236.23,236.14,6.3106]
[1738298644203,13.66282853,236.21,236.14,6.3106]
[1738298644357,13.66282853,236.21,236.14,0.063]
[1738298645685,13.41184853,236.19,236.14,0.063]
[1738298646976,0.12549,236.18,236.14,0.063]
[1738298647176,0.12549,236.16,236.14,0.063]
[1738298647495,13.41184853,236.17,236.14,0.063]
[1738298649668,17.64604853,236.17,236.14,0.063]
[1738298653599,80.6,236.16,236.14,0.063]
[1738298656801,84.8344,236.16,236.14,0.063]
[1738298659916,84.8339,236.19,236.14,0.063]
[1738298660080,80.6,236.19,236.14,0.063]
[1738298661191,84.8339,236.19,236.14,0.063]
[1738298672793,80.6,236.19,236.14,0.063]
[1738298673000,80.6,236.19,236.14,4.2977]
[1738298674018,80.6,236.19,236.14,0.063]
[1738298677200,80.6,236.19,236.14,4.2977]
[1738298677400,80.6,236.19,236.14,0.063]
[1738298687635,84.8339,236.19,236.14,0.063]
[1738298704052,80.6,236.19,236.14,0.063]
[1738298706223,84.8338,236.19,236.14,0.063]
[1738298707350,4.2338,236.19,236.14,0.063]
[1738298707552,0.03,236.21,236.14,0.063]
[1738298710342,0.03,236.21,236.14,24.2977]
[1738298710645,0.03,236.21,236.15,20.0]
[1738298711641,0.03,236.21,236.15,24.2345]
[1738298714265,0.03,236.21,236.15,4.2345]
[1738298715004,0.03,236.21,236.14,0.063]
[1738298715263,13.41184853,236.19,236.14,0.063]
[1738298716760,4.234,236.18,236.14,0.063]
[1738298726188,13.41184853,236.17,236.14,0.063]
[1738298726357,13.41184853,236.15,236.14,0.063]
[1738298726559,13.66282853,236.15,236.14,0.063]
[1738298727585,17.89732853,236.15,236.14,0.063]
[1738298729465,26.1309598,236.15,236.14,0.063]
[1738298729995,0.25098,236.14,236.13,0.063]
[1738298730288,21.8964598,236.14,236.13,0.063]
[1738298730657,22.0219498,236.14,236.13,0.0001]
[1738298730968,33.78831853,236.12,236.11,0.0001]
[1738298731182,42.0219498,236.12,236.11,0.0001]
[1738298731575,46.2570498,236.12,236.11,0.0001]
[1738298733783,38.02341853,236.12,236.11,0.0001]
[1738298734403,37.89792853,236.12,236.11,0.0001]
[1738298734581,17.64694853,236.12,236.11,0.0001]
[1738298734760,13.41184853,236.12,236.11,0.0001]
[1738298742794,80.6,236.13,236.11,0.0001]
[1738298743493,84.8349,236.13,236.11,0.0001]
[1738298746403,84.8649,236.13,236.11,0.0001]
[1738298752610,80.63,236.13,236.11,0.0001]
[1738298760817,0.03,236.13,236.11,0.0001]
[1738298767494,0.03,236.13,236.11,20.0001]
[1738298769407,0.03,236.13,236.12,4.2351]
[1738298772614,0.03,236.13,236.12,6.1211539]
[1738298772811,0.03,236.13,236.12,7.6763539]
[1738298773315,0.03,236.13,236.12,8.6763539]
[1738298775336,0.03,236.13,236.12,7.6763539]
[1738298776529,0.03,236.13,236.12,6.4253739]
[1738298776704,0.03,236.13,236.12,5.7903]
[1738298777231,0.03,236.13,236.12,4.2351]
[1738298777815,0.03,236.13,236.11,0.0001]
[1738298778018,0.03,236.13,236.11,7.0154]
[1738298780004,0.03,236.13,236.11,6.5154]
[1738298780440,0.03,236.13,236.11,3.7354]
[1738298780619,0.03,236.13,236.1,6.47207457]
[1738298780620,0.03,236.13,236.09,5.97145809]
[1738298780841,0.03,236.13,236.07,6.9959]
[1738298781214,0.03,236.13,236.03,12.78777457]
[1738298781215,0.03,236.13,236.03,6.47207457]
[1738298781417,0.03,236.13,236.04,2.76]
[1738298781920,13.44184853,236.13,236.03,6.47207457]
[1738298782124,4.2351,236.12,236.03,10.70857457]
[1738298782925,94.01184853,236.11,236.03,6.47207457]
[1738298783433,94.01184853,236.11,236.02,8.75145809]
[1738298784414,98.24714853,236.11,236.02,8.75145809]
[1738298785039,98.24714853,236.11,236.02,12.98825809]
[1738298785727,94.01184853,236.11,236.02,12.98825809]
[1738298786531,94.01184853,236.11,236.02,12.51825809]
[1738298786838,94.01184853,236.11,236.02,7.0168]
[1738298787382,94.01184853,236.11,236.02,4.2368]
[1738298790053,98.24714853,236.11,236.02,4.2368]
[1738298791704,98.24714853,236.11,236.01,20.0]
[1738298791853,98.24714853,236.11,236.01,22.78]
[1738298792032,98.24714853,236.11,236.02,4.2369]
[1738298792769,94.01184853,236.11,236.02,4.2369]
[1738298793761,94.01184853,236.11,236.02,4.2999]
[1738298793970,80.6,236.11,236.02,4.2999]
[1738298795443,1.6323,236.1,236.02,4.2999]
[1738298796548,5.8678,236.1,236.02,24.2999]
[1738298797853,1.6323,236.1,236.02,24.2999]
[1738298800532,13.41184853,236.09,236.02,20.063]
[1738298800737,13.41184853,236.09,236.02,0.063]
[1738298801843,4.2358,236.08,236.02,0.063]
[1738298805156,84.8358,236.08,236.02,0.063]
[1738298805958,80.6,236.08,236.02,4.2999]
[1738298806259,80.6,236.08,236.02,0.063]
[1738298806440,13.41184853,236.07,236.02,0.063]
[1738298807963,17.64784853,236.07,236.02,0.063]
[1738298818467,17.67784853,236.07,236.02,0.063]
[1738298819047,0.03,236.07,236.02,0.063]
[1738298820380,17.67794853,236.07,236.02,0.063]
[1738298821974,0.03,236.07,236.02,0.063]
[1738298824481,17.67784853,236.07,236.02,0.063]
[1738298825961,13.41184853,236.05,236.02,0.063]
[1738298830491,17.64824853,236.05,236.02,0.063]
[1738298830867,13.41184853,236.05,236.02,0.063]
[1738298832487,80.6,236.06,236.02,0.063]
[1738298833782,80.6,236.06,236.02,4.2998]
[1738298835585,0.03,236.07,236.02,4.2998]
[1738298836092,0.03,236.07,236.03,20.0]
[1738298836893,0.03,236.07,236.05,20.0]
[1738298837898,0.03,236.07,236.06,4.2362]
[1738298838480,0.03,236.07,236.06,4.48718]
[1738298838677,0.03,236.07,236.06,5.12245169]
[1738298840696,0.03,236.07,236.06,7.90245169]
[1738298842392,0.03,236.07,236.06,7.0162]
[1738298847289,0.03,236.07,236.06,7.65146635]
[1738298848705,0.03,236.07,236.06,7.0162]
[1738298854476,0.03,236.07,236.06,8.0162]
[1738298854999,0.03,236.07,236.06,20.67676822]
[1738298855182,0.03,236.07,236.06,21.3119406]
[1738298856803,0.03,236.07,236.06,20.5629206]
[1738298857010,0.03,236.11,236.1,0.25098]
[1738298857476,0.03,236.11,236.1,20.0]
[1738298858484,0.03,236.11,236.1,24.2354]
[1738298862703,0.03,236.11,236.1,25.48638]
[1738298862894,0.03,236.11,236.1,12.59353617]
[1738298863708,0.03,236.13,236.12,20.25098]
[1738298865106,0.03,236.13,236.12,4.48608]
[1738298866581,0.03,236.13,236.12,24.48608]
[1738298877017,0.03,236.13,236.12,24.2351]
[1738298878211,0.03,236.13,236.12,4.2351]
[1738298880217,0.03,236.13,236.11,0.063]
[1738298883392,129.0969498,236.12,236.11,0.063]
[1738298884095,133.3320498,236.12,236.11,0.063]
[1738298888427,52.7320498,236.12,236.11,0.063]
[1738298892224,19.32020127,236.12,236.11,0.063]
[1738298892649,11.08657,236.12,236.11,0.063]
[1738298892826,20.03,236.13,236.11,0.063]
[1738298892827,0.03,236.13,236.11,0.063]
[1738298901634,11.98421127,236.14,236.11,0.063]
[1738298902943,4.2349,236.13,236.11,0.063]
[1738298903233,11.98421127,236.14,236.11,0.063]
[1738298905044,16.21901127,236.14,236.11,0.063]
[1738298906223,14.8204,236.16,236.11,0.063]
[1738298910352,0.25098,236.13,236.11,0.063]
[1738298910635,12.23519127,236.12,236.11,0.063]
[1738298912034,16.47029127,236.12,236.11,0.063]
[1738298912448,24.70392254,236.12,236.11,0.063]
[1738298913836,16.47029127,236.12,236.11,0.063]
[1738298915037,4.48608,236.12,236.11,0.063]
[1738298919328,12.71971127,236.12,236.11,0.063]
[1738298923050,23.30751127,236.12,236.02,0.063]
[1738298923226,8.23363127,236.1,236.02,0.063]
[1738298924552,14.8247,236.09,236.02,0.063]
[1738298925547,18.82273127,236.09,236.02,0.063]
[1738298926522,23.05833127,236.09,236.02,0.063]
[1738298926923,80.6,236.08,236.02,0.063]
[1738298927838,88.83363127,236.08,236.02,0.063]
[1738298928750,4.236,236.07,236.02,0.063]
[1738298932564,80.6,236.08,236.02,0.063]
[1738298933136,4.2356,236.09,236.02,0.063]
[1738298934048,80.6,236.11,236.02,0.063]
[1738298934255,4.2354,236.1,236.02,0.063]
[1738298934422,4.2354,236.1,236.02,13.47484853]
[1738298934627,80.6,236.11,236.02,17.71164853]
[1738298936758,0.03,236.13,236.03,13.41184853]
[1738298938155,0.03,236.13,236.03,33.41184853]
[1738298938349,0.03,236.13,236.05,13.41184853]
[1738298938561,0.03,236.11,236.07,13.41184853]
[1738298939538,0.03,236.11,236.1,20.0]
[1738298939747,0.03,236.11,236.1,33.41184853]
[1738298940138,0.03,236.11,236.1,37.64724853]
[1738298941129,0.03,236.11,236.1,37.89822853]
[1738298942450,0.03,236.11,236.1,38.02371853]
[1738298942673,0.03,236.11,236.1,39.64691853]
[1738298944158,0.03,236.11,236.1,39.27044853]
[1738298944365,0.03,236.11,236.1,21.6232]
[1738298945635,0.03,236.11,236.1,1.6232]
[1738298946934,0.03,236.11,236.09,6.9956]
[1738298947434,0.03,236.11,236.09,2.76]
[1738298949745,0.03,236.11,236.09,6.9956]
[1738298950262,0.03,236.11,236.1,0.063]
[1738298953658,0.03,236.11,236.1,4.2984]
[1738298954678,0.03,236.11,236.1,17.96122853]
[1738298955671,0.03,236.13,236.12,43.78831853]
[1738298955973,0.03,236.13,236.12,44.4233382]
[1738298956670,0.03,236.13,236.12,48.6584382]
[1738298957704,0.03,236.13,236.12,48.7839282]
[1738298957864,0.0001,236.13,236.12,56.78710277]
[1738298958393,0.0001,236.13,236.12,193.78710277]
[1738298958571,0.0001,236.13,236.12,193.1520831]
[1738298958874,0.0001,236.13,236.12,197.3890831]
[1738298959168,0.03,236.21,236.12,203.32655545]
[1738298959355,0.03,236.21,236.17,13.41184853]
[1738298960369,0.03,236.21,236.18,4.234]
[1738298971681,0.03,236.21,236.17,13.41184853]
[1738298971980,0.03,236.21,236.18,4.234]
[1738298981688,0.03,236.21,236.17,13.41184853]
[1738298981883,0.03,236.21,236.18,4.234]
[1738298988290,0.03,236.21,236.2,24.2337]
[1738298990289,0.03,236.21,236.2,37.64554853]
[1738299006208,0.03,236.21,236.16,4.2344]
[1738299006503,0.03,236.21,236.15,2.76]
[1738299007200,0.03,236.21,236.13,4.2977]
[1738299007393,0.03,236.21,236.14,13.41184853]
[1738299007721,0.03,236.21,236.14,4.2347]
[1738299009482,0.03,236.21,236.13,0.063]
[1738299010886,82.1056,236.2,236.13,0.063]
[1738299011816,4.2338,236.19,236.13,0.063]
[1738299014325,8.23363127,236.16,236.13,0.063]
[1738299014624,88.83363127,236.15,236.13,0.063]
[1738299014810,80.6,236.15,236.13,0.063]
[1738299015176,80.6,236.14,236.13,0.063]
[1738299016021,84.8347,236.14,236.13,0.063]
[1738299016417,93.06833127,236.14,236.13,0.063]
[1738299017525,94.97341127,236.14,236.13,0.063]
[1738299021310,95.09890127,236.14,236.13,0.063]
[1738299022824,95.12890127,236.14,236.13,0.063]
[1738299023223,14.52890127,236.14,236.13,0.063]
[1738299024519,14.65439127,236.14,236.13,0.063]
[1738299025314,6.16978,236.14,236.13,0.063]
[1738299026531,0.03,236.14,236.13,0.063]
[1738299027206,0.15549,236.14,236.13,0.063]
[1738299028338,8.38912127,236.14,236.13,0.063]
[1738299029231,12.62382127,236.14,236.13,0.063]
[1738299030334,12.74931127,236.14,236.13,0.063]
[1738299033148,12.87480127,236.14,236.13,0.063]
[1738299033447,26.2866498,236.14,236.13,0.063]
[1738299036117,27.2866498,236.14,236.13,0.063]
[1738299036756,26.2866498,236.14,236.13,0.063]
[1738299037250,26.2866498,236.14,236.13,0.0001]
[1738299037550,33.41184853,236.11,236.1,0.063]
[1738299037738,41.6454798,236.11,236.1,0.063]
[1738299039042,8.23363127,236.05,236.02,0.063]
[1738299039233,0.12549,236.06,236.02,0.063]
[1738299040005,8.23363127,236.08,236.02,0.063]
[1738299040124,8.23363127,236.09,236.02,0.063]
[1738299040329,8.23363127,236.08,236.02,0.063]
[1738299040529,34.8235,236.11,236.02,0.063]
[1738299040530,8.23363127,236.07,236.02,0.063]
[1738299040849,0.12549,236.06,236.02,0.063]
[1738299041101,8.48461127,236.04,236.02,0.063]
[1738299041356,8.23363127,236.03,236.02,0.063]
[1738299041820,8.48461127,236.03,236.02,0.063]
[1738299042021,8.48461127,236.03,235.92,6.4644]
[1738299042022,0.12549,236.02,235.9,1.6253]
[1738299042335,41.8964598,236.01,235.9,1.6253]
[1738299043017,46.1335598,236.01,235.9,1.6253]
[1738299044655,8.23363127,236.03,235.94,4.2383]
[1738299044855,8.23363127,236.04,235.94,4.2383]
[1738299045408,8.23363127,236.03,235.92,4.2385]
[1738299045546,8.23363127,236.03,235.93,4.2385]
[1738299046824,4.2369,236.02,235.93,4.2385]
[1738299048229,8.23363127,236.01,235.93,20.0]
[1738299048428,8.23363127,236.01,235.91,4.2387]
[1738299048630,8.23363127,236.01,235.9,1.6253]
[1738299048828,8.35912127,236.01,235.9,1.6253]
[1738299051254,0.12549,235.99,235.9,0.063]
[1738299051440,8.23363127,235.95,235.9,0.063]
[1738299052155,8.23363127,235.96,235.9,0.063]
[1738299052758,8.23363127,235.97,235.9,0.063]
[1738299053244,4.2378,235.97,235.9,0.063]
[1738299055359,12.47143127,235.97,235.9,0.063]
[1738299056633,4.2378,235.97,235.9,0.063]